[Event "2nd Irena Warakomska Memorial-A"]
[Site "Suwalki"]
[Date "2018.08.07"]
[Round "8"]
[White "Teclaf, Pawel"]
[Black "Bugalski, Michal"]
[Result "1-0"]
[ECO "C75"]
[WhiteElo "2362"]
[BlackElo "2263"]
[Annotator "NA"]
[PlyCount "145"]
[EventDate "2018.08.01"]
[EventType "swiss"]
[EventCountry "POL"]
[SourceTitle "playchess.com"]
[Source "ChessBase"]
[SourceQuality "1"]
[TimeControl "40/5400+30:1800+30"]

1. e4 {[%emt 0:00:00]} e5 {[%emt 0:00:00]} 2. Nf3 {[%emt 0:00:00]} Nc6 {[%emt 0:00:00]} 3. Bb5 {[%emt 0:00:00]} Nge7 {[%emt 0:00:00]} 4. c3 {[%emt 0:01:56]} a6 {[%emt 0:01:40]} 5. Ba4 {[%emt 0:00:11]} d6 {[%emt 0:00:06]} 6. d4 {[%emt 0:01:38]} Bd7 {[%emt 0:00:23]} 7. h4 {[%emt 0:23:26]} h6 {[%emt 0:06:00]} 8. h5 {[%emt 0:02:51]} b5 {[%emt 0:17:28]} 9. Bb3 {[%emt 0:01:13]} Nc8 {[%emt 0:17:37]} 10. a4 {[%emt 0:07:41]} Nb6 {[%emt 0:11:06]} 11. a5 {[%emt 0:04:32]} Nc8 {[%emt 0:00:28]} 12. Be3 {[%emt 0:03:43]} Be7 {[%emt 0:01:50]} 13. dxe5 {[%emt 0:07:20]} dxe5 {[%emt 0:01:56]} 14. Qd5 {[%emt 0:02:43]} Nd6 {[%emt 0:06:38]} 15. Nxe5 {[%emt 0:00:55]} Nxe5 {[%emt 0:00:06]} 16. Qxe5 {[%emt 0:00:05]} O-O {[%emt 0:00:05]} 17. Bd5 {[%emt 0:05:17]} Rb8 {[%emt 0:04:52]} 18. Qg3 {[%emt 0:06:54]} Kh8 {[%emt 0:04:13]} 19. Bd4 {[%emt 0:01:09]} f6 {[%emt 0:02:59]} 20. Nd2 {[%emt 0:01:44]} b4 {[%emt 0:05:21]} 21. cxb4 {[%emt 0:07:10]} c6 {[%emt 0:00:40]} 22. Bb3 {[%emt 0:01:52]} Rxb4 {[%emt 0:00:29]} 23. Qe3 {[%emt 0:00:53]} Re8 {[%emt 0:04:51]} 24. O-O {[%emt 0:02:26]} Rb5 {[%emt 0:03:21]} 25. Bb6 {[%emt 0:04:22]} Qb8 {[%emt 0:00:01]} 26. Bd1 {[%emt 0:02:32]} f5 {[%emt 0:02:19]} 27. Be2 {[%emt 0:02:19]} f4 {[%emt 0:01:22]} 28. Qc3 {[%emt 0:01:44]} Bf6 {[%emt 0:01:16]} 29. Bd4 {[%emt 0:00:01]} Bxd4 30. Qxd4 {[%emt 0:00:01]} Rb4 {[%emt 0:03:07]} 31. Qd3 {[%emt 0:01:30]} Bc8 {[%emt 0:03:42]} 32. Bf3 {[%emt 0:02:13]} Nf7 {[%emt 0:00:48]} 33. b3 {[%emt 0:00:58]} Rd8 {[%emt 0:00:47]} 34. Qc2 {[%emt 0:01:33]} Rbd4 {[%emt 0:00:17]} 35. Rfd1 {[%emt 0:01:24]} Ne5 {[%emt 0:00:40]} 36. Be2 {[%emt 0:00:53]} Qb4 {[%emt 0:00:21]} 37. Nf3 {[%emt 0:01:04]} Nxf3+ {[%emt 0:00:51]} 38. Bxf3 {[%emt 0:00:01]} c5 {[%emt 0:00:41]} 39. Rdc1 {[%emt 0:01:07]} Rd2 {[%emt 0:00:27]} 40. Qxc5 {[%emt 0:00:00]} Qxb3 {[%emt 0:00:00]} 41. Qe5 {[%emt 0:14:00]} Qb2 {[%emt 0:04:36]} 42. Qxb2 {[%emt 0:02:06]} Rxb2 {[%emt 0:00:02]} 43. Rab1 {[%emt 0:00:55]} Rxb1 {[%emt 0:00:12]} 44. Rxb1 {[%emt 0:00:26]} Be6 {[%emt 0:00:15]} 45. Be2 {[%emt 0:00:27]} Rd2 {[%emt 0:04:32]} 46. Bxa6 {[%emt 0:00:21]} Ra2 {[%emt 0:00:06]} 47. Bd3 {[%emt 0:02:27]} Rxa5 {[%emt 0:00:07]} 48. Rb8+ {[%emt 0:00:03]} Kh7 {[%emt 0:00:05]} 49. e5+ {[%emt 0:00:34]} g6 {[%emt 0:00:06]} 50. hxg6+ {[%emt 0:01:12]} Kg7 {[%emt 0:00:18]} 51. Rb7+ {[%emt 0:00:13]} Kg8 {[%emt 0:03:21]} 52. Rb6 {[%emt 0:02:01]} Ba2 {[%emt 0:00:20]} 53. Rb8+ {[%emt 0:02:31]} Kg7 {[%emt 0:00:07]} 54. Re8 {[%emt 0:00:44]} Ra3 {[%emt 0:09:07]} 55. Be4 {[%emt 0:00:28]} Ra6 {[%emt 0:00:05]} 56. Kh2 {[%emt 0:00:47]} h5 {[%emt 0:03:55]} 57. g3 {[%emt 0:00:45]} fxg3+ {[%emt 0:00:06]} 58. Kxg3 {[%emt 0:00:07]} h4+ {[%emt 0:00:02]} 59. Kh3 {[%emt 0:01:07]} Ra4 {[%emt 0:02:30]} 60. f3 {[%emt 0:00:17]} Bc4 {[%emt 0:00:47]} 61. Re7+ {[%emt 0:04:17]} Kf8 {[%emt 0:00:44]} 62. Rh7 {[%emt 0:00:57]} Be6+ {[%emt 0:00:17]} 63. Kxh4 {[%emt 0:00:23]} Bd5 {[%emt 0:00:20]} 64. Kg5 {[%emt 0:01:16]} Bxe4 {[%emt 0:00:06]} 65. Rf7+ {[%emt 0:00:25]} Ke8 {[%emt 0:06:40]} 66. fxe4 {[%emt 0:00:15]} Rxe4 {[%emt 0:00:07]} 67. Rf5 {[%emt 0:00:20]} Re1 {[%emt 0:00:06]} 68. g7 {[%emt 0:00:14]} Ke7 {[%emt 0:00:31]} 69. Kg6 {[%emt 0:00:06]} Rg1+ {[%emt 0:00:37]} 70. Rg5 {[%emt 0:00:05]} Rxg5+ {[%emt 0:00:52]} 71. Kxg5 {[%emt 0:00:05]} Kf7 {[%emt 0:00:03]} 72. Kf5 {[%emt 0:00:03]} Kxg7 {[%emt 0:00:10]} 73. Ke6 1-0

[Event "2nd Irena Warakomska Memorial-A"]
[Site "Suwalki"]
[Date "2018.08.07"]
[Round "8"]
[White "Kosakowski, Jakub"]
[Black "Fedorov, Alexei"]
[Result "1/2-1/2"]
[ECO "B32"]
[WhiteElo "2361"]
[BlackElo "2561"]
[Annotator "ChessBase"]
[PlyCount "139"]
[EventDate "2018.08.01"]
[EventType "swiss"]
[EventCountry "POL"]
[SourceTitle "playchess.com"]
[Source "ChessBase"]
[SourceQuality "1"]
[TimeControl "40/5400+30:1800+30"]

1. e4 {[%emt 0:00:00]} c5 {[%emt 0:00:00]} 2. Nf3 {[%emt 0:00:06]} Nc6 {[%emt 0:00:00]} 3. d4 {[%emt 0:00:35]} cxd4 {[%emt 0:00:00]} 4. Nxd4 {[%emt 0:00:06]} e5 {[%emt 0:00:19]} 5. Nb5 {[%emt 0:01:24]} d6 {[%emt 0:00:19]} 6. N1c3 {[%emt 0:01:09]} a6 {[%emt 0:00:58]} 7. Na3 {[%emt 0:00:11]} Be7 {[%emt 0:00:36]} 8. Be3 {[%emt 0:03:27]} Rb8 {[%emt 0:02:11]} 9. Nd5 {[%emt 0:01:42]} b5 {[%emt 0:00:12]} 10. c4 {[%emt 0:08:43]} b4 {[%emt 0:00:13]} 11. Nc2 {[%emt 0:00:10]} Nf6 {[%emt 0:00:16]} 12. g3 {[%emt 0:08:45]} Nxe4 {[%emt 0:15:01]} 13. Bg2 {[%emt 0:00:12]} f5 {[%emt 0:02:18]} 14. b3 {[%emt 0:03:25]} Be6 {[%emt 0:08:44]} 15. Qd3 {[%emt 0:04:46]} O-O {[%emt 0:08:33]} 16. Rd1 {[%emt 0:04:06]} Bg5 {[%emt 0:03:58]} 17. O-O {[%emt 0:08:37]} Kh8 {[%emt 0:07:56]} 18. Bxg5 {[%emt 0:07:23]} Nxg5 {[%emt 0:02:53]} 19. Nde3 {[%emt 0:03:31]} f4 {[%emt 0:18:54]} 20. Bxc6 {[%emt 0:11:32]} fxe3 {[%emt 0:00:13]} 21. Qxe3 {[%emt 0:00:19]} Bg4 {[%emt 0:10:45]} 22. f3 {[%emt 0:01:47]} Bf5 {[%emt 0:00:09]} 23. Rd2 {[%emt 0:07:28]} Qf6 {[%emt 0:05:15]} 24. Rfd1 {[%emt 0:05:48]} Ne6 {[%emt 0:05:13]} 25. Be4 {[%emt 0:04:08]} Bxe4 {[%emt 0:02:32]} 26. fxe4 {[%emt 0:00:07]} Qe7 {[%emt 0:00:28]} 27. Rf1 {[%emt 0:08:24]} Rxf1+ {[%emt 0:01:14]} 28. Kxf1 {[%emt 0:00:06]} Nc5 {[%emt 0:01:05]} 29. Rf2 {[%emt 0:01:00]} Qb7 {[%emt 0:01:00]} 30. Re2 {[%emt 0:02:21]} a5 {[%emt 0:00:54]} 31. Ne1 {[%emt 0:01:18]} Rf8+ {[%emt 0:00:34]} 32. Kg2 {[%emt 0:00:18]} Qf7 {[%emt 0:00:19]} 33. Nf3 {[%emt 0:00:11]} g5 {[%emt 0:01:36]} 34. Rf2 {[%emt 0:01:36]} g4 {[%emt 0:00:42]} 35. Nd2 {[%emt 0:00:05]} Qxf2+ {[%emt 0:00:21]} 36. Qxf2 {[%emt 0:00:01]} Rxf2+ {[%emt 0:00:05]} 37. Kxf2 {[%emt 0:00:05]} Kg7 {[%emt 0:01:26]} 38. Ke3 {[%emt 0:00:08]} Kf6 {[%emt 0:00:15]} 39. Ke2 {[%emt 0:00:37]} h5 {[%emt 0:00:34]} 40. Ke3 {[%emt 0:00:00]} Kg5 {[%emt 0:00:00]} 41. Ke2 {[%emt 0:00:42]} Kf6 {[%emt 0:01:12]} 42. Ke3 {[%emt 0:00:54]} Ke7 {[%emt 0:01:59]} 43. Ke2 {[%emt 0:01:42]} Kd7 {[%emt 0:00:13]} 44. Ke3 {[%emt 0:00:06]} Kc6 {[%emt 0:00:50]} 45. Ke2 {[%emt 0:00:21]} a4 {[%emt 0:10:02]} 46. Ke3 {[%emt 0:02:03]} axb3 {[%emt 0:01:29]} 47. axb3 {[%emt 0:00:30]} Ne6 {[%emt 0:00:09]} 48. Ke2 {[%emt 0:01:33]} Nd4+ {[%emt 0:00:09]} 49. Ke3 {[%emt 0:00:32]} Kb6 {[%emt 0:00:08]} 50. Kd3 {[%emt 0:03:26]} Kc5 {[%emt 0:00:05]} 51. Ke3 {[%emt 0:01:08]} Nxb3 {[%emt 0:06:25]} 52. Nxb3+ {[%emt 0:00:08]} Kxc4 {[%emt 0:00:03]} 53. Nd2+ {[%emt 0:00:08]} Kc3 {[%emt 0:00:06]} 54. Ke2 {[%emt 0:00:04]} b3 {[%emt 0:04:02]} 55. Kd1 {[%emt 0:00:50]} b2 {[%emt 0:00:09]} 56. Nb1+ {[%emt 0:00:07]} Kd4 {[%emt 0:03:59]} 57. Kc2 {[%emt 0:01:35]} Kxe4 {[%emt 0:00:15]} 58. Nd2+ {[%emt 0:00:06]} Ke3 {[%emt 0:03:28]} 59. Nc4+ {[%emt 0:00:38]} Kf3 {[%emt 0:00:17]} 60. Kxb2 {[%emt 0:05:38]} e4 {[%emt 0:00:45]} 61. Nd2+ {[%emt 0:01:40]} Ke3 {[%emt 0:00:30]} 62. Kc3 {[%emt 0:01:44]} d5 {[%emt 0:00:20]} 63. Nb3 {[%emt 0:00:06]} Kf2 {[%emt 0:01:20]} 64. Nd4 {[%emt 0:00:40]} Kg2 {[%emt 0:02:11]} 65. Kd2 {[%emt 0:00:28]} Kxh2 {[%emt 0:00:31]} 66. Ne2 {[%emt 0:00:27]} d4 {[%emt 0:00:38]} 67. Nxd4 {[%emt 0:00:49]} Kxg3 {[%emt 0:00:08]} 68. Ke3 {[%emt 0:00:09]} h4 {[%emt 0:00:46]} 69. Kxe4 {[%emt 0:00:19]} Kf2 {[%emt 0:00:37]} 70. Nf5 {[%emt 0:00:12]} 1/2-1/2

[Event "2nd Irena Warakomska Memorial-A"]
[Site "Suwalki"]
[Date "2018.08.07"]
[Round "8"]
[White "Punin, Andrii"]
[Black "Czarnota, Pawel"]
[Result "0-1"]
[ECO "B68"]
[WhiteElo "2339"]
[BlackElo "2548"]
[Annotator "ChessBase"]
[PlyCount "66"]
[EventDate "2018.08.01"]
[EventType "swiss"]
[EventCountry "POL"]
[SourceTitle "playchess.com"]
[Source "ChessBase"]
[SourceQuality "1"]
[TimeControl "40/5400+30:1800+30"]

1. e4 {[%emt 0:00:00]} c5 {[%emt 0:00:00]} 2. Nf3 {[%emt 0:00:00]} d6 {[%emt 0:00:00]} 3. d4 {[%emt 0:00:00]} cxd4 {[%emt 0:00:00]} 4. Nxd4 {[%emt 0:00:00]} Nf6 {[%emt 0:00:05]} 5. Nc3 {[%emt 0:00:00]} Nc6 {[%emt 0:00:05]} 6. Bg5 {[%emt 0:00:21]} e6 {[%emt 0:00:06]} 7. Qd2 {[%emt 0:00:07]} a6 {[%emt 0:00:05]} 8. O-O-O {[%emt 0:00:07]} Bd7 {[%emt 0:00:04]} 9. f4 {[%emt 0:00:32]} Be7 {[%emt 0:01:55]} 10. Be2 {[%emt 0:07:32]} O-O {[%emt 0:19:19]} 11. h4 {[%emt 0:07:51]} b5 {[%emt 0:14:38]} 12. a3 {[%emt 0:03:55]} Qc7 {[%emt 0:12:47]} 13. Nxc6 {[%emt 0:08:46]} Bxc6 {[%emt 0:00:45]} 14. Bf3 {[%emt 0:03:26]} Rac8 {[%emt 0:05:04]} 15. Qe2 {[%emt 0:05:40]} Rfd8 {[%emt 0:04:50]} 16. f5 {[%emt 0:08:36]} Re8 {[%emt 0:08:36]} 17. fxe6 {[%emt 0:04:01]} fxe6 {[%emt 0:00:10]} 18. Bg4 {[%emt 0:00:31]} Nxg4 {[%emt 0:07:42]} 19. Qxg4 {[%emt 0:01:58]} Bf8 {[%emt 0:00:31]} 20. h5 {[%emt 0:05:59]} a5 {[%emt 0:00:28]} 21. h6 {[%emt 0:00:09]} g6 {[%emt 0:05:40]} 22. Rd4 {[%emt 0:09:21]} e5 {[%emt 0:05:25]} 23. Rd2 {[%emt 0:00:20]} b4 {[%emt 0:00:04]} 24. Nd5 {[%emt 0:09:08]} Bxd5 {[%emt 0:00:05]} 25. exd5 {[%emt 0:00:04]} bxa3 {[%emt 0:00:03]} 26. Rh3 {[%emt 0:00:08]} axb2+ {[%emt 0:02:17]} 27. Kxb2 {[%emt 0:00:43]} a4 {[%emt 0:00:54]} 28. Kc1 {[%emt 0:04:52]} Qc5 {[%emt 0:03:22]} 29. Be3 {[%emt 0:03:55]} Qb5 {[%emt 0:04:28]} 30. Rf3 {[%emt 0:02:02]} Rc4 {[%emt 0:02:33]} 31. Qh3 {[%emt 0:01:10]} Rb4 {[%emt 0:01:14]} 32. Rd1 {[%emt 0:01:10]} Rb1+ {[%emt 0:00:07]} 33. Kd2 {[%emt 0:00:05]} Qxd5+ {[%emt 0:00:04]} 0-1

[Event "2nd Irena Warakomska Memorial-A"]
[Site "Suwalki"]
[Date "2018.08.07"]
[Round "8"]
[White "Grebeniuk, Semen"]
[Black "Pietruszewski, Marcin"]
[Result "1-0"]
[ECO "A05"]
[WhiteElo "2306"]
[BlackElo "2208"]
[Annotator "NA"]
[PlyCount "79"]
[EventDate "2018.08.01"]
[EventType "swiss"]
[EventCountry "POL"]
[SourceTitle "playchess.com"]
[Source "ChessBase"]
[SourceQuality "1"]
[TimeControl "40/5400+30:1800+30"]

1. Nf3 {[%emt 0:00:00]} Nf6 {[%emt 0:01:43]} 2. g3 {[%emt 0:00:00]} d5 {[%emt 0:00:03]} 3. Bg2 {[%emt 0:00:00]} Bg4 {[%emt 0:04:34]} 4. O-O {[%emt 0:00:49]} Nbd7 {[%emt 0:00:26]} 5. d3 {[%emt 0:00:49]} c6 {[%emt 0:05:25]} 6. h3 {[%emt 0:00:29]} Bh5 {[%emt 0:01:41]} 7. Qe1 {[%emt 0:02:03]} e5 {[%emt 0:00:51]} 8. e4 {[%emt 0:00:12]} dxe4 {[%emt 0:03:19]} 9. dxe4 {[%emt 0:01:49]} Bc5 {[%emt 0:01:53]} 10. a4 {[%emt 0:02:38]} O-O {[%emt 0:02:31]} 11. Na3 {[%emt 0:00:34]} Qe7 {[%emt 0:00:18]} 12. Nh4 {[%emt 0:01:16]} Rfd8 {[%emt 0:02:49]} 13. Nc4 {[%emt 0:02:12]} Ne8 {[%emt 0:02:57]} 14. Bd2 {[%emt 0:14:46]} a6 {[%emt 0:14:40]} 15. Na5 {[%emt 0:14:51]} Rab8 {[%emt 0:01:56]} 16. Nb3 {[%emt 0:06:14]} Ba7 {[%emt 0:15:23]} 17. Bb4 {[%emt 0:02:03]} Qe6 {[%emt 0:05:08]} 18. Kh1 {[%emt 0:15:39]} Nd6 {[%emt 0:16:24]} 19. Nf5 {[%emt 0:09:22]} Nxf5 {[%emt 0:08:06]} 20. exf5 {[%emt 0:00:24]} Qxf5 {[%emt 0:00:01]} 21. Bd6 {[%emt 0:09:21]} Bf3 {[%emt 0:03:20]} 22. g4 {[%emt 0:02:47]} Bxg4 {[%emt 0:06:53]} 23. hxg4 {[%emt 0:01:04]} Qxg4 {[%emt 0:00:02]} 24. Bxb8 {[%emt 0:00:53]} Bxb8 {[%emt 0:00:06]} 25. Qe3 {[%emt 0:00:54]} Nf6 {[%emt 0:01:23]} 26. Qh3 {[%emt 0:00:30]} Qf4 {[%emt 0:00:33]} 27. Rad1 {[%emt 0:01:11]} Re8 {[%emt 0:00:15]} 28. Nc5 {[%emt 0:05:42]} e4 {[%emt 0:00:28]} 29. Nd7 {[%emt 0:00:36]} Nxd7 {[%emt 0:00:49]} 30. Rxd7 {[%emt 0:00:14]} g6 {[%emt 0:00:29]} 31. Kg1 {[%emt 0:01:54]} Kg7 {[%emt 0:00:32]} 32. Rxb7 {[%emt 0:01:06]} Bd6 {[%emt 0:00:29]} 33. Re1 {[%emt 0:01:15]} Re5 {[%emt 0:00:23]} 34. Qe3 {[%emt 0:01:13]} Qg4 {[%emt 0:00:38]} 35. Qd4 {[%emt 0:00:36]} Qe6 36. Rxe4 Qf6 {[%emt 0:01:00]} 37. Rxe5 {[%emt 0:00:39]} Bxe5 {[%emt 0:00:01]} 38. Qe4 {[%emt 0:00:40]} Qg5 {[%emt 0:00:21]} 39. Qe3 Qh5 40. Qf3 {[%emt 0:00:00]} 1-0

[Event "2nd Irena Warakomska Memorial-A"]
[Site "Suwalki"]
[Date "2018.08.07"]
[Round "8"]
[White "Szostko, Jakub"]
[Black "Kokoszczynski, Jan"]
[Result "1/2-1/2"]
[ECO "B90"]
[WhiteElo "2299"]
[BlackElo "2187"]
[Annotator "NA"]
[PlyCount "73"]
[EventDate "2018.08.01"]
[EventType "swiss"]
[EventCountry "POL"]
[SourceTitle "playchess.com"]
[Source "ChessBase"]
[SourceQuality "1"]
[TimeControl "40/5400+30:1800+30"]

1. e4 {[%emt 0:00:00]} c5 {[%emt 0:00:00]} 2. Nf3 d6 {[%emt 0:00:00]} 3. d4 {[%emt 0:00:00]} cxd4 {[%emt 0:00:00]} 4. Nxd4 {[%emt 0:00:00]} Nf6 {[%emt 0:00:00]} 5. Nc3 {[%emt 0:00:00]} a6 6. h3 {[%emt 0:00:18]} e6 {[%emt 0:00:11]} 7. g4 {[%emt 0:00:12]} Be7 {[%emt 0:00:14]} 8. g5 {[%emt 0:00:28]} Nfd7 {[%emt 0:00:24]} 9. h4 {[%emt 0:01:52]} Nc6 {[%emt 0:04:02]} 10. Be3 {[%emt 0:00:49]} Nxd4 {[%emt 0:06:44]} 11. Qxd4 O-O {[%emt 0:00:54]} 12. O-O-O {[%emt 0:02:53]} b5 {[%emt 0:05:07]} 13. f4 {[%emt 0:21:28]} Bb7 {[%emt 0:14:00]} 14. a3 {[%emt 0:09:57]} Rc8 {[%emt 0:14:10]} 15. Rh3 {[%emt 0:11:12]} Nc5 {[%emt 0:03:31]} 16. Bg2 {[%emt 0:06:02]} Qc7 {[%emt 0:18:16]} 17. Kb1 {[%emt 0:02:17]} Rfd8 {[%emt 0:07:07]} 18. Qd2 {[%emt 0:03:22]} d5 {[%emt 0:01:46]} 19. exd5 {[%emt 0:01:58]} Na4 {[%emt 0:15:04]} 20. Nxa4 {[%emt 0:04:45]} bxa4 {[%emt 0:01:10]} 21. Qf2 Bxd5 22. Bxd5 {[%emt 0:05:21]} Rxd5 {[%emt 0:00:45]} 23. Rxd5 {[%emt 0:00:30]} exd5 {[%emt 0:00:06]} 24. Bd4 {[%emt 0:03:00]} Qd7 {[%emt 0:00:26]} 25. f5 {[%emt 0:03:18]} Re8 {[%emt 0:00:57]} 26. Re3 {[%emt 0:01:59]} Bd6 {[%emt 0:00:35]} 27. f6 g6 {[%emt 0:00:03]} 28. Qe2 {[%emt 0:02:32]} Rxe3 {[%emt 0:04:24]} 29. Qxe3 Qb5 {[%emt 0:00:59]} 30. Qh3 {[%emt 0:15:08]} Qc4 {[%emt 0:03:16]} 31. Bc3 {[%emt 0:03:43]} h5 {[%emt 0:00:44]} 32. Bb4 {[%emt 0:01:01]} Be5 {[%emt 0:00:24]} 33. Qh1 {[%emt 0:00:59]} Qe4 {[%emt 0:00:31]} 34. Qh3 {[%emt 0:00:18]} Qg4 {[%emt 0:00:09]} 35. Qh1 Qe4 {[%emt 0:00:05]} 36. Qh3 {[%emt 0:01:36]} Qg4 37. Qh1 {[%emt 0:00:45]} 1/2-1/2

[Event "2nd Irena Warakomska Memorial-A"]
[Site "Suwalki"]
[Date "2018.08.07"]
[Round "8"]
[White "Sliwicka, Alicja"]
[Black "Budrewicz, Krzysztof"]
[Result "1/2-1/2"]
[ECO "B09"]
[WhiteElo "2293"]
[BlackElo "2203"]
[Annotator "NA"]
[PlyCount "150"]
[EventDate "2018.08.01"]
[EventType "swiss"]
[EventCountry "POL"]
[SourceTitle "playchess.com"]
[Source "ChessBase"]
[SourceQuality "1"]
[TimeControl "40/5400+30:1800+30"]

1. e4 {[%emt 0:00:00]} g6 {[%emt 0:00:00]} 2. d4 {[%emt 0:00:00]} Bg7 {[%emt 0:00:00]} 3. Nc3 {[%emt 0:00:00]} d6 {[%emt 0:00:11]} 4. f4 {[%emt 0:00:00]} Nf6 {[%emt 0:00:12]} 5. Nf3 {[%emt 0:00:00]} O-O {[%emt 0:00:07]} 6. Bd3 {[%emt 0:00:00]} Na6 {[%emt 0:00:38]} 7. O-O {[%emt 0:00:11]} c5 {[%emt 0:00:41]} 8. d5 Bg4 {[%emt 0:06:44]} 9. Kh1 {[%emt 0:00:18]} Rb8 {[%emt 0:03:22]} 10. h3 {[%emt 0:00:12]} Bxf3 {[%emt 0:00:31]} 11. Rxf3 {[%emt 0:00:10]} Nc7 {[%emt 0:00:36]} 12. a4 e6 {[%emt 0:07:40]} 13. dxe6 {[%emt 0:09:14]} Nxe6 {[%emt 0:06:43]} 14. Bc4 {[%emt 0:14:07]} Nd4 {[%emt 0:01:24]} 15. Rd3 {[%emt 0:04:41]} Re8 {[%emt 0:02:10]} 16. Be3 Nxe4 {[%emt 0:01:41]} 17. Nxe4 {[%emt 0:09:47]} Rxe4 {[%emt 0:00:04]} 18. Bd5 {[%emt 0:00:33]} Re8 {[%emt 0:04:45]} 19. c3 {[%emt 0:03:41]} Nf5 {[%emt 0:00:06]} 20. Bf2 {[%emt 0:00:48]} Qc7 {[%emt 0:29:36]} 21. b3 {[%emt 0:03:16]} a6 {[%emt 0:02:21]} 22. a5 {[%emt 0:03:23]} Ne7 {[%emt 0:01:52]} 23. Qf3 {[%emt 0:05:23]} Nxd5 {[%emt 0:00:56]} 24. Rxd5 {[%emt 0:07:02]} Rbd8 {[%emt 0:01:33]} 25. Bh4 {[%emt 0:03:16]} Rc8 {[%emt 0:03:09]} 26. f5 {[%emt 0:01:26]} Re5 {[%emt 0:02:15]} 27. f6 {[%emt 0:01:20]} Rxd5 {[%emt 0:01:31]} 28. Qxd5 {[%emt 0:00:14]} Bf8 {[%emt 0:00:09]} 29. Re1 {[%emt 0:02:56]} Qc6 {[%emt 0:00:37]} 30. Qd2 {[%emt 0:05:29]} Re8 {[%emt 0:00:38]} 31. Rxe8 {[%emt 0:02:21]} Qxe8 {[%emt 0:00:05]} 32. c4 {[%emt 0:04:55]} Qe4 {[%emt 0:04:46]} 33. Bg3 {[%emt 0:02:06]} Qe6 34. Qf4 Qf5 {[%emt 0:03:02]} 35. Kh2 {[%emt 0:07:10]} h6 {[%emt 0:01:54]} 36. h4 {[%emt 0:02:49]} h5 {[%emt 0:00:15]} 37. Qf3 {[%emt 0:01:34]} Qd7 {[%emt 0:00:42]} 38. Bf4 {[%emt 0:00:55]} Kh7 {[%emt 0:00:21]} 39. Bg3 {[%emt 0:01:15]} Qc6 {[%emt 0:03:26]} 40. Qd3 {[%emt 0:00:00]} Kg8 {[%emt 0:00:00]} 41. Bf4 {[%emt 0:02:07]} d5 {[%emt 0:06:55]} 42. cxd5 {[%emt 0:03:19]} Qxf6 {[%emt 0:00:07]} 43. Qg3 {[%emt 0:00:35]} Qd4 {[%emt 0:06:06]} 44. d6 {[%emt 0:04:03]} Bg7 {[%emt 0:00:07]} 45. Be3 {[%emt 0:04:46]} Qd5 {[%emt 0:00:44]} 46. Bf4 {[%emt 0:00:04]} Bf6 {[%emt 0:00:52]} 47. Qe3 {[%emt 0:01:49]} Qc6 {[%emt 0:09:42]} 48. Bg3 {[%emt 0:06:05]} Bd8 {[%emt 0:04:41]} 49. Qe5 {[%emt 0:02:02]} Kh7 {[%emt 0:02:20]} 50. Be1 {[%emt 0:00:47]} Qd7 {[%emt 0:02:53]} 51. Qxc5 {[%emt 0:00:48]} Qe6 {[%emt 0:03:39]} 52. Bg3 {[%emt 0:00:34]} f6 {[%emt 0:00:27]} 53. b4 {[%emt 0:00:51]} Kg7 {[%emt 0:00:06]} 54. Qa7 {[%emt 0:01:30]} Qd7 {[%emt 0:00:35]} 55. Qe3 {[%emt 0:00:05]} Qf7 {[%emt 0:00:32]} 56. Qe4 {[%emt 0:02:39]} Qd7 {[%emt 0:00:13]} 57. Qf3 {[%emt 0:01:14]} Qc6 {[%emt 0:00:17]} 58. Qd3 {[%emt 0:01:45]} Qd7 {[%emt 0:00:16]} 59. Bf2 {[%emt 0:00:36]} Qb5 {[%emt 0:01:06]} 60. Qd2 {[%emt 0:04:37]} Qc4 {[%emt 0:01:52]} 61. Bg3 {[%emt 0:00:46]} Qe6 {[%emt 0:01:02]} 62. d7 {[%emt 0:01:17]} Kf7 {[%emt 0:00:26]} 63. Qh6 {[%emt 0:00:48]} Qxd7 {[%emt 0:02:43]} 64. Qh7+ {[%emt 0:00:04]} Ke8 {[%emt 0:00:09]} 65. Qg8+ {[%emt 0:00:26]} Ke7 {[%emt 0:00:04]} 66. Qxg6 {[%emt 0:00:25]} Qd5 {[%emt 0:00:12]} 67. Qh6 {[%emt 0:01:46]} Kd7 {[%emt 0:00:19]} 68. Qf4 {[%emt 0:00:12]} Be7 {[%emt 0:00:16]} 69. Qc7+ {[%emt 0:01:24]} Ke6 {[%emt 0:00:20]} 70. Qb8 {[%emt 0:01:22]} Kf7 {[%emt 0:00:15]} 71. Qc7 {[%emt 0:00:26]} Qe4 {[%emt 0:02:09]} 72. Qd7 {[%emt 0:01:00]} Kf8 {[%emt 0:02:16]} 73. b5 {[%emt 0:00:17]} axb5 {[%emt 0:00:29]} 74. Qxb5 {[%emt 0:00:06]} f5 {[%emt 0:00:06]} 75. Qb6 {[%emt 0:01:35]} Kg7 {[%emt 0:01:52]} 1/2-1/2

[Event "2nd Irena Warakomska Memorial-A"]
[Site "Suwalki"]
[Date "2018.08.07"]
[Round "8"]
[White "Chylewski, Patryk"]
[Black "Kashlinskaya, Alina"]
[Result "1/2-1/2"]
[ECO "C03"]
[WhiteElo "2270"]
[BlackElo "2435"]
[Annotator "NA"]
[PlyCount "55"]
[EventDate "2018.08.01"]
[EventType "swiss"]
[EventCountry "POL"]
[SourceTitle "playchess.com"]
[Source "ChessBase"]
[SourceQuality "1"]
[TimeControl "40/5400+30:1800+30"]

1. e4 {[%emt 0:00:00]} e6 {[%emt 0:00:00]} 2. d4 {[%emt 0:00:00]} d5 {[%emt 0:00:00]} 3. Nd2 {[%emt 0:00:00]} Be7 {[%emt 0:00:06]} 4. Bd3 {[%emt 0:02:37]} c5 {[%emt 0:00:21]} 5. dxc5 {[%emt 0:00:13]} Nf6 {[%emt 0:00:16]} 6. exd5 {[%emt 0:00:36]} Nxd5 {[%emt 0:04:49]} 7. Nb3 {[%emt 0:03:54]} O-O {[%emt 0:02:24]} 8. Nf3 {[%emt 0:00:43]} Nd7 {[%emt 0:07:07]} 9. O-O {[%emt 0:02:51]} Nxc5 {[%emt 0:05:22]} 10. Nxc5 {[%emt 0:00:11]} Bxc5 {[%emt 0:00:05]} 11. c4 {[%emt 0:07:34]} Nf6 {[%emt 0:11:21]} 12. Bg5 {[%emt 0:02:47]} h6 {[%emt 0:01:36]} 13. Bh4 {[%emt 0:02:34]} b6 {[%emt 0:01:33]} 14. Qe2 {[%emt 0:05:45]} Bb7 {[%emt 0:02:10]} 15. Ne5 {[%emt 0:06:15]} Qd4 {[%emt 0:10:45]} 16. Bg3 {[%emt 0:04:12]} Be7 {[%emt 0:01:24]} 17. Rfd1 {[%emt 0:03:38]} Qc5 {[%emt 0:02:16]} 18. Rd2 {[%emt 0:06:42]} Rad8 {[%emt 0:01:40]} 19. Rad1 {[%emt 0:01:47]} Qc8 {[%emt 0:02:29]} 20. Bh4 {[%emt 0:08:25]} Qa8 {[%emt 0:02:36]} 21. Ng4 {[%emt 0:16:19]} Qc8 {[%emt 0:15:24]} 22. Bxf6 {[%emt 0:06:52]} Bxf6 {[%emt 0:00:13]} 23. Nxf6+ {[%emt 0:00:12]} gxf6 {[%emt 0:00:05]} 24. Qg4+ {[%emt 0:01:09]} Kh8 {[%emt 0:00:06]} 25. Qh4 {[%emt 0:00:42]} Kg7 {[%emt 0:00:11]} 26. Qg4+ {[%emt 0:05:33]} Kh8 {[%emt 0:00:05]} 27. Qh4 {[%emt 0:00:03]} Kg7 {[%emt 0:00:13]} 28. Qg4+ {[%emt 0:02:48]} 1/2-1/2